bitfinex-derivatives/quotes_ETHF0:USTF0_20250905
["timestamp","ask_amount","ask_price","bid_price","bid_amount"]
[1757076918544,7.52018,4470.0,4469.9,1.35734]
[1757076918750,4.76660351,4470.0,4469.9,4.40264]
[1757076918948,1.4974,4472.4,4469.9,6.253]
[1757076919148,0.18551659,4473.6,4473.5,0.40231]
[1757076919459,0.18551659,4473.6,4473.5,3.61011]
[1757076919661,0.18551659,4473.6,4473.5,0.40231]
[1757076919952,0.5794,4474.0,4473.5,3.2078]
[1757076920151,0.5794,4474.5,4473.8,1.82288]
[1757076920352,5.935169,4473.9,4473.8,0.40228]
[1757076920549,5.935169,4473.9,4473.0,3.2078]
[1757076920955,6.189169,4473.9,4473.7,0.40228]
[1757076921160,0.254,4473.8,4473.0,3.2078]
[1757076921356,1.4974,4473.7,4473.5,0.40231]
[1757076921559,2.0768,4473.6,4473.5,0.40231]
[1757076921861,1.7514,4473.6,4473.0,3.2078]
[1757076922049,0.5794,4473.6,4473.0,3.2078]
[1757076922251,1.72095,4473.5,4472.0,3.61024]
[1757076922461,1.4974,4472.9,4472.3,0.40242]
[1757076922653,1.4974,4472.7,4472.0,3.2078]
[1757076922849,3.2078,4473.0,4472.9,0.40237]
[1757076923060,0.254,4473.2,4473.1,0.40234]
[1757076923262,1.4974,4473.2,4472.6,3.2078]
[1757076923561,1.4974,4472.6,4472.1,0.40243]
[1757076923759,2.3308,4472.5,4471.6,0.254]
[1757076923955,0.5794,4471.5,4470.9,3.2078]
[1757076924152,2.0768,4470.5,4470.4,3.2078]
[1757076924357,0.8334,4470.5,4469.9,0.40263]
[1757076924556,0.8334,4470.5,4470.1,0.40261]
[1757076924857,1.4974,4470.4,4470.3,3.2078]
[1757076925250,0.5794,4471.0,4470.3,3.2078]
[1757076925453,1.4974,4472.5,4470.9,1.418]
[1757076925655,3.2078,4472.4,4471.5,0.40248]
[1757076925959,3.2078,4472.4,4470.9,1.418]
[1757076925960,1.4974,4471.7,4470.6,3.2078]
[1757076926257,1.4974,4471.7,4469.6,1.00664]
[1757076926258,1.4974,4471.1,4470.1,3.2078]
[1757076926559,0.254,4471.0,4470.1,3.2078]
[1757076926855,1.4974,4470.9,4470.1,3.61041]
[1757076927056,1.4974,4471.3,4471.2,0.40251]
[1757076927258,3.2078,4472.7,4471.3,1.418]
[1757076927461,2.3308,4472.4,4472.3,0.40241]
[1757076927659,3.2078,4472.7,4472.1,1.00608]
[1757076927861,1.4974,4473.5,4473.1,0.40234]
[1757076927862,3.2078,4473.3,4473.1,0.40234]
[1757076928059,1.4974,4474.1,4474.0,0.40226]
[1757076928356,2.3308,4474.8,4474.7,0.4022]
[1757076928552,1.4974,4474.1,4474.0,3.61005]
[1757076928755,2.0768,4474.8,4474.7,0.4022]
[1757076928958,2.0768,4474.8,4473.9,3.2078]
[1757076929165,4.9592,4474.7,4474.5,0.40221]
[1757076929352,1.4974,4474.6,4474.5,0.40221]
[1757076929551,1.7514,4474.6,4474.5,0.40221]
[1757076929758,1.4974,4474.6,4474.5,0.40221]
[1757076931167,5.4974,4474.6,4474.0,0.40226]
[1757076931463,1.4974,4473.5,4472.6,3.2078]
[1757076931665,1.4974,4473.5,4473.4,0.4023]
[1757076931861,1.4974,4473.5,4472.9,0.40235]
[1757076932060,0.254,4474.5,4473.7,1.00571]
[1757076932261,0.254,4474.5,4473.4,1.418]
[1757076932262,1.7514,4474.5,4474.4,0.40222]
[1757076932463,1.4974,4474.4,4474.2,0.40224]
[1757076932661,1.4974,4474.4,4472.6,3.2078]
[1757076932967,1.4974,4474.1,4474.0,0.40226]
[1757076934062,0.8334,4474.2,4473.1,3.2078]
[1757076934261,1.4974,4474.1,4473.2,1.00584]
[1757076934454,1.4974,4474.1,4473.1,3.2078]
[1757076934455,0.8334,4474.2,4472.6,3.2078]
[1757076934658,0.5794,4473.0,4472.8,0.40236]
[1757076934857,1.4974,4472.8,4471.7,0.254]
[1757076935064,3.2078,4473.1,4473.0,0.40235]
[1757076935262,4.7052,4473.1,4473.0,0.40235]
[1757076935457,2.0768,4473.0,4472.0,3.2078]
[1757076935662,1.4974,4472.5,4472.4,0.4024]
[1757076935863,0.5794,4472.4,4472.2,0.40242]
[1757076936069,1.4974,4472.3,4472.2,0.40242]
[1757076936267,1.7514,4472.3,4472.2,0.40242]
[1757076936466,1.4974,4472.2,4471.5,3.2078]
[1757076936665,2.0768,4471.8,4471.1,1.58531122]
[1757076936865,4.7052,4471.4,4471.3,0.40249]
[1757076937072,4.7052,4471.4,4470.5,3.2078]
[1757076937264,0.5794,4471.2,4470.8,0.40254]
[1757076937467,1.4974,4471.1,4470.6,0.40256]
[1757076937664,2.0768,4470.6,4470.5,3.2078]
[1757076937867,0.5437,4470.5,4468.9,3.07111122]
[1757076938168,3.2078,4469.0,4468.9,1.04161122]
[1757076938368,3.2078,4469.0,4468.9,2.93013122]
[1757076938565,3.4618,4469.0,4468.9,2.52741122]
[1757076938972,3.2078,4469.0,4468.9,2.52741122]
[1757076939266,0.254,4469.1,4469.0,1.88849]
[1757076939466,0.254,4469.4,4468.9,1.04161122]
[1757076939668,0.254,4469.4,4469.2,1.4858]
[1757076939865,3.2078,4469.2,4469.1,1.88848]
[1757076940271,0.254,4469.6,4469.5,0.40263]
[1757076940569,0.254,4469.6,4469.4,0.5746]
[1757076940570,0.254,4469.9,4469.8,0.40261]
[1757076940770,0.254,4469.9,4469.8,1.88841]
[1757076941069,3.2078,4470.2,4470.0,0.4026]
[1757076941370,3.2078,4470.2,4470.1,1.4858]
[1757076941769,3.4618,4470.2,4469.8,0.40262]
[1757076941971,3.2078,4470.8,4470.5,0.40255]
[1757076942167,3.2078,4470.8,4470.6,0.40254]
[1757076942363,3.2078,4470.8,4470.7,1.4858]
[1757076942970,3.2078,4471.6,4470.8,1.4858]
[1757076943168,0.254,4471.5,4470.7,1.4858]
[1757076943473,0.254,4471.5,4470.6,0.40254]
[1757076943683,0.254,4471.5,4470.5,1.4858]
[1757076943881,3.2078,4470.9,4470.1,3.2078]
[1757076944175,3.2078,4470.9,4468.9,30.871]
[1757076944176,3.2078,4470.4,4469.3,3.4618]
[1757076944372,0.254,4470.3,4469.5,1.4858]
[1757076944576,2.4618,4470.4,4470.3,1.4858]
[1757076945077,4.254,4470.4,4469.6,1.88843]
[1757076945262,3.2078,4470.2,4469.6,1.4858]
[1757076945470,0.254,4470.1,4469.2,3.2078]
[1757076946070,0.254,4470.1,4468.7,0.40271]
[1757076946071,3.2078,4469.5,4468.7,0.40271]
[1757076946279,0.254,4469.4,4468.8,0.4027]
[1757076946482,3.2078,4470.2,4469.2,1.4858]
[1757076946667,0.254,4470.1,4469.9,0.4026]
[1757076946975,3.2078,4470.2,4470.1,0.40258]
[1757076947181,3.4618,4470.2,4470.1,1.88838]
[1757076947366,3.4618,4470.2,4470.0,0.40259]
[1757076947777,3.4618,4470.2,4469.8,0.40261]
[1757076947979,3.4618,4470.2,4469.3,0.40266]
[1757076948175,0.0026,4469.7,4468.9,0.40269]
[1757076948368,3.2078,4469.3,4468.2,0.5746]
[1757076948570,3.2078,4468.6,4468.5,0.40273]
[1757076948772,3.2078,4468.6,4468.5,1.88123]
[1757076949074,0.254,4470.1,4469.1,1.4785]
[1757076949270,3.2078,4470.6,4469.4,0.5813]
[1757076949471,0.254,4470.5,4470.4,1.88106]
[1757076949780,3.2078,4471.7,4471.3,1.4785]
[1757076950074,3.2078,4471.7,4470.0,3.7891]
[1757076950075,0.0026,4471.5,4470.4,0.40256]
[1757076950278,3.2078,4471.2,4470.1,1.4785]
[1757076950479,0.254,4471.1,4470.6,0.40255]
[1757076950879,0.254,4471.1,4470.4,0.40256]
[1757076951182,0.254,4471.1,4470.2,1.88108]
[1757076951375,0.22629,4471.0,4469.4,2.0598]
[1757076951579,3.2078,4470.1,4468.9,1.4785]
[1757076951779,0.254,4470.0,4468.9,1.4785]
[1757076951978,0.254,4470.0,4469.0,0.40269]
[1757076952274,0.0026,4469.6,4468.5,0.40273]
[1757076952480,3.2078,4469.7,4468.3,4.21468]
[1757076952780,0.254,4469.6,4469.3,1.4785]
[1757076952978,0.254,4469.5,4469.4,1.88115]
[1757076953278,0.254,4469.5,4469.0,3.2078]
[1757076953279,0.254,4469.5,4469.1,1.88117]
[1757076953479,0.254,4469.5,4468.9,1.4785]
[1757076953781,0.254,4469.5,4469.4,2.46245]
[1757076953981,0.254,4469.5,4469.4,2.0598]
[1757076954177,0.254,4469.5,4468.9,0.40269]
[1757076954375,0.254,4469.5,4468.2,0.5813]
[1757076954576,3.2078,4469.2,4468.8,0.5813]
[1757076954776,0.254,4469.6,4469.5,1.4785]
[1757076955077,0.254,4469.6,4469.5,4.6863]
[1757076955376,0.254,4469.6,4469.5,1.4785]
[1757076956478,7.4618,4469.6,4468.8,1.4785]
[1757076956677,3.2078,4469.1,4468.8,1.4785]
[1757076956880,0.254,4469.0,4468.3,3.2078]
[1757076957074,3.2078,4469.1,4469.0,0.40269]
[1757076957281,0.254,4469.4,4468.8,0.984]
[1757076957482,0.254,4469.4,4468.9,0.40269]
[1757076957681,0.254,4469.4,4468.8,0.5813]
[1757076958084,0.254,4469.4,4468.9,0.40269]
[1757076958283,0.254,4469.3,4469.2,0.40266]
[1757076958485,0.254,4469.3,4469.2,1.4785]
[1757076958694,4.254,4469.3,4468.3,3.2078]
[1757076958895,3.2078,4469.1,4468.3,3.2078]
[1757076959287,3.2078,4469.6,4468.9,1.4785]
[1757076959585,0.254,4469.8,4469.5,1.4785]
[1757076959788,0.254,4469.8,4469.4,1.4785]
[1757076959987,0.254,4469.8,4469.0,0.40268]
[1757076960187,3.2078,4469.7,4469.1,1.4785]
[1757076960383,3.2078,4469.7,4468.8,0.5813]
[1757076960590,3.2078,4469.2,4468.3,1.4785]
[1757076960786,0.254,4469.1,4468.5,1.4785]
[1757076961394,3.2078,4469.2,4468.9,1.4785]
[1757076961690,0.254,4469.1,4468.9,1.4785]
[1757076961892,0.254,4469.1,4468.2,0.5813]
[1757076961893,0.254,4469.1,4468.3,1.4785]
[1757076962095,3.2078,4468.7,4468.3,1.4785]
[1757076962284,3.2078,4468.7,4468.5,1.88123]
[1757076962489,3.4618,4468.7,4468.6,1.4785]
[1757076963889,3.2078,4468.7,4468.6,1.4785]
[1757076964192,0.1113,4469.9,4469.7,0.40262]
[1757076964591,0.1113,4469.9,4469.8,1.4785]
[1757076964791,3.2078,4471.4,4469.9,1.00653]
[1757076964987,0.254,4471.3,4470.7,1.4785]
[1757076965394,3.2078,4471.4,4470.3,1.4785]
[1757076965597,0.254,4471.3,4470.5,0.40255]
[1757076965793,0.254,4471.2,4470.6,0.40254]
[1757076965996,0.254,4471.2,4470.7,1.4785]
[1757076966198,0.254,4471.2,4470.6,2.0598]
[1757076966494,3.2078,4471.4,4470.6,2.0598]
[1757076966792,0.254,4471.3,4470.6,2.0598]
[1757076967190,3.2078,4471.4,4470.7,1.4785]
[1757076967392,3.2078,4472.5,4471.3,1.4785]
[1757076967596,1.8345,4472.4,4471.3,1.4785]
[1757076967796,3.2078,4472.5,4471.3,1.4785]
[1757076967992,0.254,4472.4,4471.3,1.4785]
[1757076968193,0.254,4472.4,4471.2,3.7891]
[1757076968390,1.5805,4472.3,4470.8,1.4785]
[1757076968598,1.5805,4471.8,4470.8,1.4785]
[1757076968798,0.254,4471.7,4470.8,1.4785]
[1757076969393,1.5805,4471.8,4470.9,0.40251]
[1757076969591,0.254,4471.7,4471.0,0.5813]
[1757076969791,3.2078,4471.4,4470.2,4.6863]
[1757076969987,1.5805,4470.2,4470.0,1.59049394]
[1757076970193,1.8345,4470.1,4470.0,1.59049394]
[1757076970388,1.8345,4470.1,4468.7,1.4785]
[1757076970600,3.2078,4469.4,4468.7,1.4785]
[1757076970797,0.254,4469.3,4469.0,0.5813]
[1757076970998,3.4618,4469.3,4468.1,1.4785]
[1757076971189,3.2078,4468.3,4468.1,1.4785]
[1757076971501,0.254,4468.6,4468.5,0.5813]
[1757076971794,3.2078,4469.9,4468.6,1.4785]
[1757076972000,3.4618,4469.8,4468.6,1.4785]
[1757076972200,0.254,4469.7,4468.6,1.4785]
[1757076972694,3.2078,4469.3,4468.6,1.4785]
[1757076972897,0.254,4469.2,4468.6,1.4785]
[1757076973399,0.1089,4468.6,4467.0,2.0598]
[1757076973701,3.2078,4469.0,4467.2,1.4785]
[1757076973898,0.254,4468.9,4467.7,1.4785]
[1757076974299,3.2078,4468.8,4467.7,1.4785]
[1757076974492,3.2078,4469.5,4468.2,2.46256]
[1757076974694,0.254,4469.7,4468.7,1.4785]
[1757076974896,1.5805,4470.7,4469.2,0.40266]
[1757076975094,3.2078,4470.0,4469.5,1.4785]
[1757076975296,1.8355,4469.9,4468.9,1.4785]
[1757076975601,3.4628,4469.9,4468.9,4.6863]
[1757076975805,0.255,4469.8,4469.0,1.4785]
[1757076976103,0.255,4469.7,4469.0,1.4785]
[1757076976702,0.255,4469.9,4469.0,1.4785]
[1757076977203,1.1912344,4470.8,4469.4,3.2078]
[1757076977400,0.255,4470.7,4470.1,1.4785]
[1757076977599,3.2078,4470.5,4469.5,40.8]
[1757076977805,3.2078,4470.5,4469.6,1.4785]
[1757076978805,0.255,4470.4,4469.6,1.4785]
[1757076979003,0.255,4470.4,4469.4,3.7891]
[1757076979004,34.0908,4471.8,4470.2,3.2078]
[1757076979201,0.255,4471.7,4470.7,3.2078]
[1757076979407,30.883,4471.8,4471.3,1.439]
[1757076979603,0.255,4471.7,4471.2,0.5876]
[1757076979907,0.255,4471.7,4471.3,1.439]
[1757076980094,0.255,4471.7,4471.2,0.5876]
[1757076980295,1.5498,4471.6,4471.0,3.2078]
[1757076980507,1.5498,4471.0,4469.8,1.439]
[1757076980694,0.255,4470.9,4469.8,1.439]
[1757076981215,3.2078,4470.6,4469.8,1.439]
[1757076981404,3.2078,4470.1,4469.2,1.439]
[1757076981701,0.255,4470.0,4469.1,3.2078]
[1757076982402,1.5498,4469.9,4469.1,3.2078]
[1757076982705,1.5498,4469.3,4468.0,1.439]
[1757076982895,3.2078,4468.8,4468.0,1.439]
[1757076983095,0.254,4468.7,4468.0,1.439]
[1757076983497,1.5498,4468.7,4467.7,3.2078]
[1757076983711,0.254,4468.6,4467.8,1.439]
[1757076984011,0.254,4468.5,4467.8,1.439]
[1757076984201,3.2078,4468.8,4467.8,1.439]
[1757076984401,30.881,4469.9,4468.4,1.439]
[1757076984606,0.254,4469.8,4469.1,1.439]
[1757076985412,0.254,4469.9,4469.5,3.2078]
[1757076985712,0.254,4470.2,4469.6,1.439]
[1757076985911,0.254,4470.2,4470.1,1.439]
[1757076986610,0.254,4470.2,4470.1,4.6468]
[1757076987106,3.2078,4470.8,4470.7,1.439]
[1757076987315,32.0742344,4471.2,4470.6,3.7954]
[1757076987616,31.137,4471.2,4470.9,3.2078]
[1757076987805,31.137,4471.2,4470.9,4.6468]
[1757076988006,31.137,4471.2,4470.9,1.439]
[1757076988403,0.254,4471.1,4470.4,3.2078]
[1757076989008,1.5498,4471.0,4469.9,3.2078]
[1757076989314,3.2078,4471.3,4469.9,3.2078]
[1757076989504,3.2078,4472.5,4471.3,1.439]
[1757076989809,0.254,4472.4,4471.9,3.2078]
[1757076990313,0.8762,4472.4,4471.4,3.2078]
[1757076990713,0.6222,4471.8,4471.4,3.2078]
[1757076990906,3.2078,4472.0,4471.2,1.60144575]
[1757076991110,2.172,4472.4,4471.3,4.6468]
[1757076991310,1.5498,4472.2,4471.2,1.60144575]
[1757076991515,1.5498,4472.2,4471.2,4.80924575]
[1757076991715,1.5498,4472.2,4471.2,1.60144575]
[1757076991913,3.4618,4472.1,4471.2,1.60144575]
[1757076992109,0.254,4472.0,4471.2,3.04044575]
[1757076992412,1.5498,4471.7,4471.2,1.60144575]
[1757076992709,0.254,4471.6,4471.2,1.60144575]
[1757076992916,1.5498,4471.5,4471.2,1.60144575]
[1757076993316,1.5498,4471.5,4470.7,3.2078]
[1757076993510,3.2078,4472.1,4470.9,0.40251]
[1757076993811,0.84743856,4474.8,4471.3,1.439]
[1757076993812,0.254,4472.0,4471.3,1.439]
[1757076994018,0.254,4472.0,4471.3,42.239]
[1757076994214,0.254,4472.0,4471.4,0.40246]
[1757076994818,0.254,4472.0,4471.3,42.239]
[1757076995012,0.23088723,4472.0,4471.3,42.239]
[1757076995219,0.23088723,4472.0,4471.3,1.439]
[1757076995512,1.5498,4472.2,4471.3,1.439]
[1757076995718,3.2078,4472.7,4471.4,1.439]
[1757076995912,0.254,4472.5,4471.4,1.84146]
[1757076996113,0.254,4472.5,4471.4,1.439]
[1757076996521,1.5498,4472.4,4471.4,1.439]
[1757076997020,2.172,4472.4,4471.4,1.439]
[1757076997813,2.172,4472.4,4471.2,3.2078]
[1757076998020,2.172,4472.0,4471.2,3.2078]
[1757076998219,1.5498,4471.8,4470.9,1.60144575]
[1757076998814,0.254,4471.9,4470.9,1.60144575]
[1757076998815,2.172,4471.0,4470.9,1.60144575]
[1757076999016,1.5498,4470.9,4470.0,3.2078]
[1757076999215,32.4238,4470.9,4470.0,5.2344]
[1757076999420,0.254,4470.8,4470.0,3.7954]
[1757076999623,30.874,4470.9,4470.2,1.439]
[1757077000015,3.2078,4471.1,4470.1,1.439]
[1757077000216,0.254,4471.0,4470.5,0.5876]
[1757077000412,0.254,4470.9,4470.6,1.439]
[1757077000617,0.254,4470.9,4470.0,5.2344]
[1757077001314,0.254,4470.9,4470.0,4.6468]
[1757077001518,0.254,4470.9,4470.0,3.2078]
[1757077001712,4.0,4470.8,4470.0,1.6245]
[1757077001912,3.2078,4470.5,4468.7,1.439]
[1757077002116,3.2078,4469.0,4468.6,1.439]
[1757077002316,3.2078,4469.0,4468.5,0.5876]
[1757077002822,0.254,4468.9,4468.1,1.439]
[1757077003120,0.3606,4468.9,4467.5,2.0266]
[1757077003320,3.2078,4468.2,4467.2,1.439]
[1757077003520,0.254,4468.1,4467.1,1.439]
[1757077003727,0.254,4468.1,4467.6,2.0074692]
[1757077004025,0.254,4468.1,4467.7,1.439]
[1757077004426,34.879,4468.0,4467.6,2.0074692]
[1757077004723,3.2078,4467.7,4466.5,2.7945789]
[1757077004921,3.2078,4467.5,4466.6,1.439]
[1757077005126,0.254,4467.4,4466.6,1.439]
[1757077005426,3.2078,4466.9,4466.5,2.7945789]
[1757077005620,0.254,4466.8,4466.6,1.439]
[1757077006426,0.254,4466.8,4466.5,4.2335789]
[1757077006727,3.2078,4466.9,4466.6,1.439]
[1757077006923,0.254,4466.8,4466.7,0.40289]
[1757077007122,3.2078,4467.5,4467.1,1.439]
[1757077007326,0.254,4467.4,4467.1,1.439]
[1757077007626,0.254,4467.4,4467.0,0.5876]
[1757077007827,0.254,4467.4,4467.1,1.439]
[1757077008021,3.2078,4467.5,4467.0,0.5876]
[1757077008327,0.254,4467.4,4467.1,1.4344]
[1757077009124,3.2078,4467.5,4467.1,1.4344]
[1757077009323,3.2078,4467.5,4467.0,0.5876]
[1757077009324,0.254,4467.3,4467.0,0.5876]
[1757077009626,0.254,4467.3,4467.1,1.4344]
[1757077009821,0.254,4467.2,4467.1,1.4344]
[1757077010823,3.2078,4468.5,4468.0,0.5881]
[1757077011033,0.254,4468.4,4468.1,1.4344]
[1757077011323,0.254,4468.4,4467.5,0.5881]
[1757077011520,0.254,4468.4,4467.6,1.4344]
[1757077011929,3.2078,4468.0,4467.6,1.4344]
[1757077012132,0.254,4467.9,4467.5,0.5881]
[1757077012318,3.2078,4468.0,4467.6,0.4028]
[1757077012523,0.254,4467.9,4467.7,1.83718]
[1757077012724,1.6242,4468.5,4468.4,1.4344]
[1757077013123,0.254,4468.5,4468.4,1.4344]
[1757077014030,1.7606,4468.5,4468.1,1.4344]
[1757077014227,0.254,4468.4,4468.0,0.5881]
[1757077014722,0.254,4468.4,4468.1,1.4344]
[1757077015230,0.254,4468.4,4467.7,1.4344]
[1757077015432,3.4618,4468.4,4467.7,1.4344]
[1757077015837,3.4618,4468.4,4467.1,1.4344]
[1757077016128,3.4618,4468.4,4467.4,0.40282]
[1757077016336,3.4618,4468.4,4467.5,1.4344]
[1757077017035,3.4618,4468.4,4467.0,2.022]
[1757077017331,3.2078,4467.9,4467.0,2.022]
[1757077017532,0.254,4467.8,4467.0,2.42485]
[1757077017929,0.254,4467.8,4467.0,2.022]
[1757077018130,0.254,4467.7,4467.0,2.022]
[1757077018828,4.7144,4467.5,4466.5,0.5881]
[1757077019648,3.2078,4467.5,4467.0,0.5881]
[1757077019929,0.254,4467.4,4467.0,0.5881]
[1757077020133,0.254,4467.3,4467.1,1.4344]
[1757077020336,0.254,4467.3,4466.6,1.4344]
[1757077020929,3.2078,4467.6,4466.6,1.4344]
[1757077021228,30.893,4467.8,4467.6,1.4344]
[1757077021431,0.254,4467.7,4467.6,1.4344]
[1757077021633,0.254,4467.7,4467.1,1.4344]
[1757077021835,3.2078,4467.3,4466.5,2.0225]
[1757077022038,0.254,4467.2,4466.5,2.0225]
[1757077022336,0.254,4467.2,4466.6,1.4344]
[1757077022729,3.2078,4467.5,4466.7,0.40289]
[1757077023032,0.254,4467.4,4467.2,1.4344]
[1757077023430,0.40284,4467.3,4467.1,1.4344]
[1757077023835,0.254,4467.4,4467.1,1.4344]
[1757077024336,0.40286,4467.0,4466.5,0.5881]
[1757077024532,0.254,4466.9,4466.5,0.5881]
[1757077024733,0.254,4466.9,4466.6,0.40289]
[1757077025041,0.40289,4466.6,4466.5,0.5881]
[1757077025227,0.40289,4466.6,4466.5,2.0225]
[1757077025534,3.2078,4467.2,4467.0,0.5881]
[1757077025738,3.2078,4467.2,4467.1,1.4344]
[1757077025931,0.40294,4466.1,4465.7,3.2078]
[1757077026131,0.65694,4466.1,4466.0,2.0225]
[1757077026630,0.40299,4465.6,4465.2,3.2078]
[1757077026838,0.65699,4465.6,4465.5,2.0225]
[1757077027134,0.65699,4465.6,4465.5,1.4344]
[1757077027342,0.254,4465.6,4465.2,1.4344]
[1757077027536,1.7606,4465.6,4465.2,1.4344]
[1757077027833,0.254,4465.6,4465.2,1.4344]
[1757077028030,0.40304,4465.1,4465.0,2.0225]
[1757077028230,0.40304,4465.1,4464.5,0.5881]
[1757077028231,0.65704,4465.1,4464.5,0.5881]
[1757077028536,0.65704,4465.1,4464.6,1.4344]
[1757077029136,1.5066,4464.9,4463.0,0.5881]
[1757077029330,3.2078,4464.0,4463.0,2.0225]
[1757077029530,3.2078,4464.0,4463.0,0.5881]
[1757077029730,0.254,4463.9,4463.6,1.4344]
[1757077030237,30.901,4464.1,4463.6,1.4344]
[1757077030432,30.901,4464.1,4464.0,2.0225]
[1757077030739,29.5714,4464.1,4464.0,2.0225]
[1757077030932,29.5714,4464.1,4463.7,1.4344]
[1757077031128,29.5714,4464.1,4463.6,3.2078]
[1757077031336,29.3174,4464.1,4464.0,2.0225]
[1757077031536,29.3174,4464.1,4464.0,1.4344]
[1757077031537,29.5714,4464.1,4464.0,1.4344]
[1757077032035,29.3174,4464.1,4464.0,1.4344]
[1757077032338,29.5714,4464.1,4463.5,2.42568]
[1757077032637,29.3174,4464.1,4463.6,1.4344]
[1757077032840,1.5066,4463.9,4463.1,3.2078]
[1757077033638,0.254,4463.8,4463.2,1.4344]
[1757077034134,4.7144,4463.7,4462.8,0.17029477]
[1757077034539,4.93845,4463.7,4462.8,0.17029477]
[1757077034743,4.7144,4463.7,4462.8,0.17029477]
[1757077035037,0.254,4463.6,4462.8,0.17029477]
[1757077035239,1.5066,4462.9,4462.8,0.17029477]
[1757077035429,1.7606,4462.9,4462.8,0.17029477]
[1757077035628,1.5066,4462.8,4461.7,3.2078]
[1757077035834,3.2078,4462.6,4461.2,3.2078]
[1757077036032,0.5813,4462.0,4461.2,3.2078]
[1757077036232,0.5813,4462.0,4460.8,1.4344]
[1757077036233,32.6736,4461.9,4460.8,1.4344]
[1757077036433,32.4196,4461.9,4460.8,1.4344]
[1757077036630,0.254,4461.8,4461.2,3.2078]
[1757077036840,0.254,4461.8,4461.7,1.83775]
[1757077037337,3.2078,4463.4,4462.7,0.40326]
[1757077037538,1.5066,4463.2,4461.9,3.2078]
[1757077037736,0.254,4463.1,4462.0,0.5881]
[1757077037944,0.254,4463.1,4462.4,0.40328]
[1757077038129,1.5066,4463.2,4462.0,0.5881]
[1757077038334,0.254,4463.1,4462.4,0.40328]
[1757077038532,1.5795,4462.6,4461.8,3.2078]
[1757077038737,0.254,4462.5,4461.8,3.2078]
[1757077038938,0.254,4462.5,4461.9,0.40332]
[1757077039138,0.254,4462.5,4461.8,3.2078]
[1757077039442,0.254,4462.4,4462.0,0.5816]
[1757077039741,0.254,4462.3,4462.2,0.4033]
[1757077039936,0.254,4462.7,4462.6,1.83396]
[1757077040134,0.254,4462.9,4462.8,1.4307]
[1757077040336,0.254,4462.9,4462.4,0.40327]
[1757077040543,3.2078,4462.8,4462.2,1.834]
[1757077040846,3.2078,4462.8,4462.2,1.4307]
[1757077041047,3.2078,4462.8,4462.2,1.834]
[1757077041541,3.2078,4462.8,4462.2,1.4307]
[1757077041744,1.8335,4462.9,4462.2,1.83399]
[1757077041937,3.2078,4463.4,4462.2,1.4307]
[1757077042143,0.254,4463.3,4462.7,1.83394]
[1757077042345,0.254,4463.3,4462.7,1.4307]
[1757077042540,1.5795,4463.6,4462.9,0.40323]
[1757077042739,1.5795,4463.4,4462.7,3.2078]
[1757077042941,4.7873,4463.4,4462.4,0.40327]
[1757077043147,4.7873,4463.4,4462.5,1.4307]
[1757077043847,4.7873,4463.4,4462.6,0.40326]
[1757077044049,0.254,4463.3,4462.5,2.0123]
[1757077044349,0.254,4463.3,4462.5,1.4307]
[1757077044548,1.5795,4463.2,4462.5,1.4307]
[1757077044844,1.5795,4463.2,4462.2,3.2078]
[1757077045044,1.5795,4463.2,4462.1,0.40331]
[1757077045245,1.5795,4463.2,4462.2,0.4033]
[1757077045446,3.2078,4463.4,4462.9,0.40323]
[1757077045646,1.5795,4463.8,4463.0,2.0123]
[1757077045847,30.916,4464.0,4463.8,1.4307]
[1757077046049,0.254,4463.9,4463.7,1.4307]
[1757077046242,0.254,4463.9,4463.7,0.40316]
[1757077046447,0.254,4463.9,4463.8,1.4307]
[1757077046843,30.916,4464.0,4463.9,0.40314]
[1757077047044,31.17,4464.0,4463.9,1.83384]
[1757077047249,1.5795,4463.9,4463.7,0.40316]
[1757077047645,1.5795,4463.9,4463.7,1.83386]
[1757077047950,1.5795,4463.9,4463.7,1.4307]
[1757077048652,31.17,4464.0,4463.8,1.4307]
[1757077049152,31.17,4464.0,4463.5,3.2078]
[1757077049353,30.916,4464.0,4463.9,1.4307]
[1757077049554,1.1912344,4465.3,4465.2,1.4307]
[1757077049857,0.254,4466.1,4465.3,0.40302]
[1757077050053,0.65699,4465.7,4465.1,0.40304]
[1757077050256,0.65699,4465.7,4465.0,3.2078]
[1757077050257,0.5787,4465.5,4465.0,3.2078]
[1757077050457,0.5787,4466.0,4465.4,1.83371]
[1757077050653,0.254,4465.7,4465.5,0.403]
[1757077050854,0.254,4465.7,4465.3,0.40302]
[1757077051059,1.5795,4465.6,4465.3,0.40302]
[1757077051254,0.254,4465.7,4465.0,3.2078]
[1757077051255,1.5795,4465.4,4465.0,3.2078]
[1757077051561,0.254,4465.3,4465.0,3.2078]
[1757077051958,0.40305,4465.0,4464.5,3.2078]
[1757077052258,1.5795,4464.8,4464.5,3.2078]
[1757077052460,1.8325,4464.7,4464.5,3.61089]